Cogmind - Beta 10.2 *** ADVENTURER MODE // 2021.03.17 @ 12:52:00 Player: hop Result: Smashed by cave-in Performance ------------- Evolutions (0) 0 Regions Visited (1) 200 Robots Destroyed (14) 70 Value Destroyed (83) 83 Prototype IDs (0) 0 Alien Tech Used (0) 0 Bonus (0) 0 TOTAL SCORE: 353 Bonus ------- None Cogmind --------- Core Integrity 0/250 Matter 239/300 Energy 100/100 System Corruption 14% Temperature Cool (0) Movement Core (50) Location -10/Materials Parts ------- > --- POWER (1) -------- (None) > --- PROPULSION (2) --- (None) > --- UTILITY (2) ------ (None) > --- WEAPON (2) ------- (None) > --- INVENTORY (4) ---- Tractor Beam EM Pulse Gun Small Laser Grenade Launcher Peak State ------------ > --- POWER ------------ Ion Engine > --- PROPULSION ------- Wheel Wheel > --- UTILITY ---------- Seismic Analyzer > --- WEAPON ----------- EM Pulse Gun Small Laser > --- INVENTORY -------- Light Ion Engine Tractor Beam Small Laser [Rating: 6] Favorites ----------- Power Light Ion Engine Engine Light Ion Engine Propulsion Wheel Wheel Wheel Utility Seismic Analyzer Processor Seismic Analyzer Weapon EM Pulse Gun Energy Gun EM Pulse Gun Special Weapon Mining Laser Build | -11 -10 ------- Run | Scr Mat Slots Evolved . | . . Power . | . . Propulsion . | . . Utility . | . . Weapon . | . . Parts Attached 14 | 12 2 Power 4 | 3 1 Engine 4 | 3 1 Core . | . . Reactor . | . . Propulsion 3 | 3 . Treads . | . . Leg . | . . Wheel 3 | 3 . Hover . | . . Flight . | . . Utility 1 | 1 . Device . | . . Storage . | . . Processor 1 | 1 . Hackware . | . . Protection . | . . Artifact . | . . Weapon 6 | 5 1 Energy Gun 4 | 4 . Energy Cannon . | . . Ballistic Gun . | . . Ballistic Cannon . | . . Launcher . | . . Special Weapon 2 | 1 1 Impact Weapon . | . . Slashing Weapon . | . . Piercing Weapon . | . . Special Melee Weapon . | . . Unidentified Prototypes . | . . Parts Lost 5 | . 5 Power 1 | . 1 Propulsion 2 | . 2 Utility 1 | . 1 Weapon 1 | . 1 Highest Loss Streak 2 | . 2 Average Slot Usage (%) 27 | . 27 Engine 9 | . 9 Wheel 12 | . 12 Processor 1 | . 1 Special Weapon 2 | . 2 Naked Turns 213 | . 213 Heaviest Build 8 | 8 4 Greatest Support 26 | 26 20 Greatest Overweight (x) . | . . Average Overweight (x) . | . . Largest Inventory Capacity 4 | 4 4 Average Capacity 4 | 4 4 Most Carried 4 | 4 4 Average Carried 3 | 3 3 Final Capacity 4 | 4 4 Final Carried 4 | 4 4 Class Distribution -------------------- 100% | Mutant Dominant Class ---------------- Mutant | -10/Materials Resources | -11 -10 ----------- Run | Scr Mat Matter Collected 332 | 320 12 Remotely . | . . Salvage Created 275 | 263 12 Parts 28 | 28 . Haulers Intercepted . | . . Recyclers Shooed . | . . Parts Field Recycled . | . . Retrieved Matter . | . . Parts Self-Destructed . | . . Prevented . | . . Kills | -11 -10 ------- Run | Scr Mat Combat Hostiles Destroyed . | . . Classes Destroyed 3 | 3 . Worker 4 | 4 . Tunneler 9 | 9 . Recycler 1 | 1 . Best Kill Streak 3 | 3 . Combat Bots Only . | . . Max Kills in Single Turn 1 | 1 . Gunslinging . | . . Exploded . | . . Melee . | . . Uniques/NPCs Destroyed . | . . Combat | -11 -10 -------- Run | Scr Mat Damage Taken 501 | 24 477 Core 255 | . 255 Absorbed by Shields . | . . Core Remaining (%) 100 | 100 . Volleys Fired 62 | 43 19 Largest 2 | 2 1 Hottest 140 | 140 100 Shots Fired 80 | 61 19 Gun 52 | 52 . Cannon . | . . Launcher . | . . Special 28 | 9 19 Kinetic . | . . Thermal 39 | 20 19 Explosive . | . . Electromagnetic 41 | 41 . Robot Hit Streak 19 | 19 . Robot Miss Streak 3 | 3 . Penetration Max . | . . Secondary Targets . | . . Shots Hit Robots 50 | 50 . Core Hits 14 | 14 . Critical Hits . | . . Critical Kills . | . . Critical Parts Destroyed . | . . Melee Attacks . | . . Impact . | . . Slashing . | . . Piercing . | . . Sneak Attacks . | . . Combat Hostiles . | . . Follow-up Attacks . | . . Damage Inflicted 784 | 784 . Guns 495 | 495 . Cannons . | . . Explosions 97 | 97 . Melee . | . . Ramming . | . . Kinetic . | . . Thermal 346 | 346 . Explosive . | . . Electromagnetic 438 | 438 . Impact . | . . Slashing . | . . Piercing . | . . Highest Corruption 14 | . 14 Average Corruption 10 | . 10 Corruption Purged . | . . Effects 20 | . 20 Message Errors 4 | . 4 Matter Fused 9 | . 9 Heat Flow Errors 3 | . 3 Energy Discharges 2 | . 2 Alerts 2 | . 2 Overload Shots . | . . Overflow Damage 29 | 29 . Projectiles 29 | 29 . Explosions . | . . Melee . | . . Knockbacks . | . . Impact . | . . Kinetic . | . . Secondary . | . . Self-Inflicted Damage 24 | 24 . Shots 1 | 1 . Rammed . | . . Targets Rammed . | . . Kicked . | . . Crushed . | . . Highest Temperature 291 | 108 291 Average Temperature 69 | 34 101 Received Heat Transfer . | . . Effects 1 | . 1 Interference 1 | . 1 Siege Activations . | . . Robots Corrupted . | . . Combat Hostiles . | . . Parts Fried 1 | 1 . Impact Corruptions . | . . Robots Melted . | . . Combat Hostiles . | . . Parts Melted 1 | 1 . Heat Transferred 625 | 625 . Parts Sabotaged . | . . Parts Stolen . | . . Parts Stripped . | . . Power Chain Reactions 2 | 2 . Missiles Intercepted . | . . Alert | -11 -10 ------- Run | Scr Mat Peak Influence 65 | 50 65 Initial 11 | . 11 Average 21 | 23 20 Maximum Alert Level . | . . Low Security (%) 100 | 100 100 Level 1 . | . . Level 2 . | . . Level 3 . | . . Level 4 . | . . Level 5 . | . . High Security . | . . Max Security . | . . Squads Dispatched . | . . Investigation . | . . Extermination . | . . Reinforcement . | . . Assault . | . . Garrison . | . . Intercept . | . . Construction Impeded . | . . Haulers Reinforced . | . . Stealth | -11 -10 --------- Run | Scr Mat Distress Signals 1 | . 1 Communications Jammed . | . . Distress Signals . | . . Times Spotted 1 | . 1 Peak Tracking Total 4 | . 4 Tactical Retreats 1 | . 1 Traps | -11 -10 ------- Run | Scr Mat Traps Triggered . | . . Indirectly . | . . Trap Hack Attempts . | . . Triggered . | . . Disarmed . | . . Reprogrammed . | . . Reused . | . . Traps Extracted . | . . Installed . | . . Triggered . | . . Machines | -11 -10 ---------- Run | Scr Mat Machines Disabled 1 | . 1 Max in Single Turn 1 | . 1 Machines Sabotaged . | . . Garrisons Compromised . | . . Overloaded Fab Kills . | . . Fab Network Shutdowns . | . . Hacking | -11 -10 --------- Run | Scr Mat Machines Accessed . | . . Terminals . | . . Fabricators . | . . Repair Stations . | . . Recycling Units . | . . Scanalyzers . | . . Garrison Access . | . . Total Hacks . | . . Successful . | . . Failed . | . . Catastrophic . | . . Database Lockouts . | . . Manual . | . . Terminals . | . . Fabricators . | . . Repair Stations . | . . Recycling Units . | . . Scanalyzers . | . . Garrison Access . | . . Terminal Hacks . | . . Fabricator Hacks . | . . Repair Station Hacks . | . . Recycling Unit Hacks . | . . Scanalyzer . | . . Garrison Access Hacks . | . . Unauthorized Hacks . | . . Terminals . | . . Fabricators . | . . Repair Stations . | . . Recycling Units . | . . Scanalyzers . | . . Garrison Access . | . . Data Cores Recovered . | . . Used . | . . Hacking Detections . | . . Full Trace Events . | . . Feedback Events . | . . Feedback Blocked . | . . Robot Schematics Acquired . | . . Robots Built . | . . Matter . | . . Time . | . . Total Robot Build Rating . | . . Part Schematics Acquired . | . . Parts Built . | . . Matter . | . . Time . | . . Total Part Build Rating . | . . Parts Repaired . | . . Time . | . . Parts Recycled . | . . Recycled Matter . | . . Retrieved Matter . | . . Retrieved Components . | . . Parts Scanalyzed . | . . Part Schematics Acquired . | . . Parts Damaged . | . . Bothacking | -11 -10 ------------ Run | Scr Mat Used RIF Installer . | . . Robots Hacked . | . . Non-combat . | . . Combat . | . . Robot Hacks Applied . | . . Relay Couplers Released . | . . Robots Rewired . | . . Allies Hacked . | . . Hacks Repelled . | . . Allies | -11 -10 -------- Run | Scr Mat Total Allies . | . . Largest Group . | . . Highest-Rated Group . | . . Highest-Rated Ally . | . . Total Orders . | . . Ally Attacks . | . . Total Damage . | . . Kills . | . . Allies Corrupted . | . . Allies Melted . | . . Intel | -11 -10 ------- Run | Scr Mat Robot Analysis Total . | . . Derelict Logs Recovered . | . . Drone Launches . | . . Drone Recoveries . | . . Exploration | -11 -10 ------------- Run | Scr Mat Turns Passed 1294 | 573 721 Spaces Moved 489 | 422 67 Core 5 | 5 . Treads . | . . Legs . | . . Wheels 484 | 417 67 Hover . | . . Flight . | . . Fastest Speed 50 | 50 80 Average Speed 79 | 79 80 Slowest Speed 90 | 90 80 Overloaded Moves . | . . Propulsion Burnouts . | . . Robots Hopped . | . . Cave-ins Triggered 7 | . 7 Exploration Rate (%) 8 | 7 9 Regions Visited 1 Branch Regions . Pre-discovered Areas . | . . Known Exits Taken . | . . Unknown Exits Taken 1 | 1 . Scrap Searched . | . . Spaces Dug 16 | . 16 Terrain Destroyed 29 | 12 17 Melee . | . . Projectile 18 | 1 17 AOE 11 | 11 . Terrain Rammed . | . . Walls Destroyed . | . . Machines Disabled . | . . Actions | -11 -10 --------- Run | Scr Mat Total 1255 | 577 678 Wait 668 | 83 585 Move 485 | 421 64 Hop . | . . Pick Up 16 | 14 2 Fast Attach . | . . Attach 7 | 7 . Detach . | . . Swap 7 | 5 2 Drop 7 | 4 3 Fire 62 | 43 19 Melee . | . . Ram . | . . Kick . | . . Crush . | . . Escape Stasis 3 | . 3 Rewire . | . . Trap . | . . Miscellaneous . | . . Route ------- -11/Scrapyard -10/Materials History --------- Turn | Location | Event 8 | -11/Scrapyard | Discovered new exit (range 15) 574 | -11/Scrapyard | Entered Materials 608 | -10/Materials | Build established: Mutant 671 | -10/Materials | Crushed by falling debris 680 | -10/Materials | Crushed by falling debris 712 | -10/Materials | Crushed by falling debris 717 | -10/Materials | Crushed by falling debris 718 | -10/Materials | System corruption reached 10% 929 | -10/Materials | Crushed by falling debris 929 | -10/Materials | Core integrity fell below 50% 1083 | -10/Materials | Crushed by falling debris 1083 | -10/Materials | Core integrity fell below 20% 1296 | -10/Materials | Crushed by falling debris 1296 | -10/Materials | Smashed by cave-in Last Messages --------------- 00929_ Crushed by falling debris. 00944_ 3QKYAVQV:0S UYUHKLFPS//O A& 00960_ System corrupted: Heat flow error (+236). 01004_ NM%PJLQ